bitfinex-derivatives/quotes_SOLF0:USTF0_20240908
["timestamp","ask_amount","ask_price","bid_price","bid_amount"]
[1725771772200,20.97,128.25,128.16,23.7063]
[1725771772201,20.97,128.23,128.16,1.3363]
[1725771772999,20.97,128.23,128.18,2.7307]
[1725771775111,20.97,128.23,128.19,2.7306]
[1725771775311,23.6995,128.25,128.16,23.7001]
[1725771775504,20.97,128.25,128.18,20.97]
[1725771775905,20.97,128.25,128.2,2.7303]
[1725771776908,20.97,128.25,128.18,20.97]
[1725771776909,20.97,128.25,128.21,2.7302]
[1725771777815,2.7292,128.26,128.21,2.7302]
[1725771778006,1.3992,128.3,128.22,3.85980238]
[1725771778212,20.97,128.29,128.21,1.3699]
[1725771778509,2.7288,128.28,128.23,2.7298]
[1725771780101,23.699,128.27,128.22,2.73]
[1725771780612,23.37,128.38,128.27,2.7289]
[1725771780807,20.97,128.36,128.22,1.4018]
[1725771781010,20.97,128.37,128.28,20.97]
[1725771781314,1.3769,128.38,128.3,20.97]
[1725771781511,1.3769,128.38,128.3,22.352]
[1725771781712,3.89040299,128.43,128.31,20.97]
[1725771781915,20.97,128.41,128.31,20.97]
[1725771782209,20.97,128.41,128.33,20.97]
[1725771782510,20.97,128.41,128.35,2.7273]
[1725771784114,26.19,128.41,128.35,2.7273]
[1725771785818,26.19,128.39,128.3,5.26538623]
[1725771786511,28.9165,128.39,128.3,5.26538623]
[1725771788822,28.9165,128.39,128.32,2.7278]
[1725771789220,28.9165,128.39,128.3,5.26538623]
[1725771789621,28.9165,128.39,128.33,2.7277]
[1725771792514,2.7267,128.38,128.33,2.7277]
[1725771793224,28.9165,128.39,128.34,2.7275]
[1725771796020,2.7267,128.38,128.34,2.7275]
[1725771796221,4.0851,128.38,128.34,2.7275]
[1725771796619,4.0851,128.38,128.29,28.8564]
[1725771796620,26.19,128.37,128.29,2.6664]
[1725771796815,26.19,128.35,128.25,26.19]
[1725771797018,26.19,128.37,128.27,26.19]
[1725771797325,1.3584,128.38,128.28,2.6101]
[1725771797512,1.3584,128.38,128.29,26.19]
[1725771797713,4.0852,128.38,128.33,2.7276]
[1725771798816,2.7269,128.37,128.33,2.7276]
[1725771799722,2.7272,128.36,128.29,26.19]
[1725771801125,2.7272,128.36,128.31,2.7281]
[1725771801628,2.7272,128.36,128.32,2.7279]
[1725771803621,2.7269,128.37,128.32,2.7279]
[1725771804229,2.7269,128.37,128.33,2.7277]
[1725771805314,26.2950397,128.38,128.29,22.2676]
[1725771805315,22.3284,128.38,128.29,22.2676]
[1725771805924,22.3284,128.38,128.34,2.7274]
[1725771807328,25.055,128.38,128.34,2.7274]
[1725771808622,22.3284,128.38,128.29,22.2676]
[1725771808817,1.3584,128.38,128.31,20.97]
[1725771809033,1.3584,128.38,128.32,3.83094965]
[1725771809932,1.3584,128.38,128.31,20.97]
[1725771810133,2.7266,128.39,128.31,20.97]
[1725771810330,2.7266,128.39,128.35,2.7273]
[1725771814439,2.7267,128.38,128.34,2.7274]
[1725771816631,20.97,128.4,128.35,2.7273]
[1725771816632,2.7265,128.39,128.35,2.7273]
[1725771818142,2.7267,128.38,128.35,2.7273]
[1725771818335,2.7267,128.38,128.34,2.7274]
[1725771824147,2.7269,128.37,128.33,2.7277]
[1725771825041,2.7269,128.37,128.34,2.7275]
[1725771826249,11.1067,128.38,128.34,2.7275]
[1725771833058,2.7265,128.39,128.35,2.7272]
[1725771834760,2.7267,128.38,128.35,2.7272]
[1725771837556,2.7267,128.38,128.34,2.7274]
[1725771837955,11.1067,128.38,128.34,2.7274]
[1725771838259,11.1067,128.38,128.33,5.5115]
[1725771838260,11.1069,128.37,128.33,5.5115]
[1725771840660,8.38,128.4,128.33,11.1638]
[1725771841464,2.7266,128.39,128.35,2.7273]
[1725771843060,8.38,128.41,128.36,2.727]
[1725771843766,8.38,128.41,128.37,2.7268]
[1725771844163,8.38,128.42,128.37,2.7268]
[1725771844360,8.38,128.42,128.38,2.7266]
[1725771845279,11.1059,128.42,128.38,2.7266]
[1725771846473,3.8104899,128.45,128.4,11.1062]
[1725771846678,232.23507021,128.52,128.42,8.38]
[1725771846679,8.38,128.48,128.42,8.38]
[1725771847272,11.1047,128.48,128.43,2.7255]
[1725771847472,8.38,128.47,128.41,8.38]
[1725771848272,11.1049,128.47,128.42,2.7256]
[1725771849185,2.7249,128.47,128.42,2.7256]
[1725771849586,2.7249,128.47,128.43,2.7255]
[1725771850172,2.7246,128.48,128.44,2.7253]
[1725771851787,2.7246,128.48,128.43,2.7255]
[1725771851788,11.1046,128.48,128.43,2.7255]
[1725771852879,2.7247,128.47,128.43,2.7255]
[1725771861485,11.1046,128.48,128.43,2.7255]
[1725771866292,11.1046,128.48,128.44,2.7254]
[1725771867603,2.7246,128.48,128.44,2.7254]
[1725771870000,2.7243,128.49,128.45,11.1051]
[1725771870205,8.38,128.52,128.46,8.38]
[1725771870922,12.3605382,128.52,128.46,8.38]
[1725771871500,2.7241,128.5,128.46,11.1049]
[1725771874297,2.724,128.51,128.46,8.38]
[1725771874897,2.724,128.51,128.46,11.1049]
[1725771876003,2.7241,128.5,128.46,11.1049]
[1725771882295,3.9805382,128.52,128.47,8.38]
[1725771882502,8.38,128.54,128.47,8.38]
[1725771882699,12.23327419,128.54,128.48,8.38]
[1725771883301,2.7238,128.52,128.48,11.1043]
[1725771885803,2.7235,128.53,128.49,2.7243]
[1725771886203,3.85327419,128.54,128.48,8.38]
[1725771886505,6.57667419,128.54,128.5,11.1041]
[1725771887705,2.7235,128.53,128.49,2.7243]
[1725771887903,2.7235,128.53,128.47,4.1736]
[1725771887904,12.23327419,128.54,128.47,4.1736]
[1725771888111,8.38,128.54,128.47,12.5536]
[1725771888404,8.38,128.54,128.49,8.38]
[1725771888405,3.93227715,128.53,128.49,8.38]
[1725771888815,8.38,128.55,128.49,11.1043]
[1725771889003,3.86920498,128.54,128.49,11.1043]
[1725771889507,3.86920498,128.54,128.51,2.7238]
[1725771889699,8.38,128.56,128.5,8.38]
[1725771889902,12.2460903,128.56,128.5,8.38]
[1725771891307,2.7232,128.54,128.5,11.104]
[1725771898508,2.7235,128.53,128.5,11.104]
[1725771898713,8.38,128.55,128.47,4.1736]
[1725771898909,8.38,128.55,128.48,8.38]
[1725771899417,2.7236,128.53,128.48,11.1043]
[1725771899714,2.7236,128.53,128.49,8.38]
[1725771900308,2.7236,128.53,128.49,11.1041]
[1725771900511,8.38,128.53,128.47,4.1736]
[1725771900709,3.8660903,128.56,128.47,2.7768]
[1725771900710,8.38,128.51,128.47,2.7768]
[1725771901217,2.7243,128.5,128.47,2.7768]
[1725771902119,2.7243,128.5,128.47,11.1568]
[1725771907414,2.724,128.51,128.47,11.1568]
[1725771908021,2.724,128.51,128.47,13.8814]
[1725771908416,2.724,128.51,128.47,11.1568]
[1725771908726,2.7241,128.5,128.47,11.1568]
[1725771909612,2.7239,128.51,128.47,13.8815]
[1725771911320,8.38,128.53,128.47,11.1568]
[1725771911521,8.38,128.53,128.47,2.7768]
[1725771912113,8.38,128.5,128.43,146.5717954]
[1725771912318,8.38,128.49,128.43,8.38]
[1725771912514,3.96715627,128.48,128.43,8.38]
[1725771912720,2.725,128.46,128.43,8.38]
[1725771912918,2.725,128.46,128.42,5.3236]
[1725771913226,2.7255,128.44,128.42,2.5979]
[1725771913816,2.7264,128.4,128.35,2.7272]
[1725771914122,2.7264,128.4,128.36,8.38]
[1725771914825,2.7261,128.41,128.36,11.1071]
[1725771915016,8.38,128.43,128.36,2.7271]
[1725771915224,8.38,128.43,128.37,8.38]
[1725771915526,8.38,128.43,128.38,2.6845]
[1725771916124,2.7256,128.43,128.39,8.38]
[1725771918823,2.7258,128.42,128.39,8.38]
[1725771920432,2.7258,128.42,128.38,2.6845]
[1725771921433,2.726,128.41,128.38,2.6845]
[1725771921833,8.38,128.42,128.38,2.6845]
[1725771922334,6.62042913,128.41,128.38,2.6845]
[1725771922637,6.62042913,128.41,128.38,2.62464017]
[1725771922934,2.726,128.41,128.38,2.62464017]
[1725771931531,2.7264,128.4,128.38,2.62464017]
[1725771932630,2.7261,128.41,128.38,2.62464017]
[1725771933036,8.38,128.42,128.38,2.62464017]
[1725771933237,8.38,128.41,128.34,1.3684]
[1725771933426,12.33768999,128.41,128.34,9.7484]
[1725771933630,2.7266,128.39,128.34,12.4757]
[1725771936033,2.7266,128.39,128.35,2.7272]
[1725771939838,2.7266,128.38,128.34,12.4758]
[1725771943435,2.6854806,128.38,128.34,12.4758]
[1725771945742,2.6854806,128.38,128.34,4.0958]
[1725771948539,2.7269,128.37,128.34,1.3684]
[1725771948737,11.1069,128.37,128.33,5.3641]
[1725771949346,11.1069,128.37,128.33,2.6365]
[1725771949347,2.7273,128.36,128.33,2.6365]
[1725771949645,8.38,128.37,128.33,2.6365]
[1725771950242,2.7269,128.37,128.33,5.364]
[1725771951047,2.7267,128.38,128.33,11.0165]
[1725771951638,2.7267,128.38,128.34,2.7274]
[1725771951944,2.7269,128.37,128.33,2.6365]
[1725771952543,2.7267,128.38,128.34,2.7275]
[1725771957658,12.3142255,128.39,128.34,2.7275]
[1725771959269,11.1068,128.38,128.34,2.7275]
[1725771963569,2.7269,128.37,128.33,5.3642]
[1725771979086,2.7273,128.35,128.33,2.6365]
[1725771979380,11.1073,128.35,128.31,1.3996]
[1725771979578,2.7273,128.35,128.31,1.3996]
[1725771979883,8.38,128.34,128.31,1.3996]
[1725771980481,8.38,128.34,128.31,2.7281]
[1725771981386,11.1076,128.34,128.3,2.7283]
[1725771983286,11.1077,128.33,128.29,5.3664]
[1725771985385,2.7282,128.31,128.27,2.729]
[1725771985780,8.38,128.32,128.26,3.8220007]
[1725771986087,8.38,128.32,128.27,8.38]
[1725771987378,11.108,128.32,128.28,2.7287]
[1725771987781,8.38,128.32,128.27,8.38]
[1725771989384,11.1079,128.32,128.28,2.7286]
[1725771989581,118.78880693,128.35,128.13,145.99515255]
[1725771989582,8.38,128.29,128.13,145.99515255]
[1725771989786,8.38,128.29,128.23,8.38]
[1725771989986,8.38,128.29,128.24,1.2953]
[1725771990389,11.1087,128.29,128.25,2.7293]
[1725771990792,11.1087,128.29,128.25,4.0177]
[1725771990990,8.38,128.29,128.26,2.7292]
[1725771991382,8.38,128.3,128.26,2.7292]
[1725771991587,11.1084,128.3,128.26,2.7292]
[1725771992684,11.1087,128.29,128.24,1.2953]
[1725771992986,8.38,128.29,128.24,9.6753]
[1725771993195,8.38,128.29,128.25,4.1065]
[1725771994096,2.7285,128.3,128.26,2.7292]
[1725771994294,11.1085,128.3,128.26,2.7292]
[1725771996393,2.7285,128.3,128.26,2.7292]
[1725771996592,11.1086,128.29,128.25,4.1067]
[1725771996787,3.86171821,128.31,128.27,8.38]
[1725771996994,8.38,128.35,128.32,2.7277]
[1725771997184,8.38,128.35,128.29,8.38]
[1725771997590,1.3654,128.38,128.29,8.38]
[1725771997785,8.38,128.37,128.32,8.38]
[1725771997989,8.38,128.38,128.32,8.38]
[1725771999392,12.24770509,128.4,128.33,8.38]
[1725771999693,8.38,128.4,128.33,8.38]
[1725772000095,12.20872006,128.4,128.33,8.38]
[1725772001192,14.93502006,128.4,128.33,8.38]
[1725772001396,11.88141595,128.45,128.33,8.38]
[1725772001397,8.38,128.41,128.35,8.38]
[1725772002094,8.38,128.4,128.35,8.38]
[1725772002794,8.38,128.4,128.35,11.1072]
[1725772003892,15.05288627,128.42,128.36,8.38]
[1725772004093,11.1058,128.42,128.36,8.38]
[1725772004495,11.1058,128.42,128.37,2.7268]
[1725772004804,14.98368911,128.42,128.37,2.7268]
[1725772006992,2.726,128.41,128.37,2.7268]
[1725772008099,8.38,128.39,128.31,1.2733]
[1725772008304,8.38,128.38,128.32,2.6372]
[1725772009305,8.38,128.38,128.34,2.7275]
[1725772009306,11.1068,128.38,128.34,2.7275]
[1725772013507,2.7268,128.38,128.34,2.7275]
[1725772015302,1.3583,128.45,128.34,8.38]
[1725772015497,8.38,128.41,128.34,8.38]
[1725772015802,3.97125625,128.4,128.34,8.38]
[1725772016104,2.7264,128.4,128.36,2.7271]
[1725772016508,2.7264,128.4,128.35,2.7272]
[1725772016897,2.7264,128.4,128.34,8.38]
[1725772017714,2.7264,128.39,128.35,2.7272]
[1725772019714,1.3583,128.45,128.39,2.7263]
[1725772019914,13.63324992,128.45,128.38,8.38]
[1725772020215,9.7383,128.45,128.38,8.38]
[1725772020417,12.4637,128.45,128.39,2.7264]
[1725772020714,13.63987465,128.45,128.39,2.7264]
[1725772022019,8.38,128.43,128.38,2.7266]
[1725772022318,8.38,128.43,128.37,16.31661279]
[1725772024318,13.63987465,128.45,128.38,8.38]
[1725772025310,2.7254,128.44,128.39,2.7264]
[1725772031817,2.7256,128.43,128.39,2.7264]
[1725772033519,2.7258,128.42,128.38,8.38]
[1725772034025,2.7258,128.42,128.37,16.31661279]
[1725772035318,2.7258,128.42,128.38,2.7266]
[1725772037521,2.7258,128.42,128.38,11.1066]
[1725772039233,5.25987465,128.45,128.37,7.93661279]
[1725772039234,8.38,128.43,128.37,2.7339]
[1725772039433,8.38,128.42,128.37,2.7339]
[1725772039637,8.38,128.42,128.37,1.3926]
[1725772039849,8.38,128.42,128.36,159.64227945]
[1725772040042,2.7265,128.39,128.36,159.64227945]
[1725772042039,2.7263,128.4,128.36,162.36927945]
[1725772044050,8.38,128.38,128.28,1.3748]
[1725772044351,8.38,128.36,128.29,10.9481]
[1725772045048,14.97475854,128.36,128.31,2.7281]
[1725772045260,11.1073,128.36,128.31,2.7281]
[1725772048151,2.7273,128.35,128.31,2.7281]
[1725772053553,11.1071,128.36,128.32,2.7279]
[1725772053749,2.7271,128.36,128.32,2.7279]
[1725772055449,2.7271,128.36,128.33,2.7277]
[1725772058659,2.7271,128.36,128.32,2.7278]
[1725772059662,2.7271,128.36,128.33,2.7277]
[1725772062158,11.1069,128.37,128.33,2.7277]
[1725772063256,11.1067,128.38,128.34,2.7275]
[1725772072565,2.7269,128.37,128.34,2.7275]
[1725772072964,11.1067,128.38,128.34,2.7275]
[1725772074770,11.1067,128.38,128.35,2.7272]
[1725772075864,11.1067,128.38,128.34,2.7274]
[1725772077276,2.727,128.37,128.33,4.0386]
[1725772080468,2.727,128.37,128.34,2.7275]
[1725772082873,2.727,128.37,128.33,4.0386]
[1725772087569,11.107,128.37,128.33,4.0386]
[1725772095075,2.7267,128.38,128.34,2.7275]
[1725772095378,11.1067,128.38,128.34,2.7275]
[1725772105985,2.7269,128.37,128.3,3.8588867]
[1725772106192,2.7269,128.37,128.31,8.38]
[1725772106488,11.1069,128.37,128.31,8.38]
[1725772106881,11.1069,128.37,128.32,3.8355355]
[1725772107083,2.7271,128.36,128.33,2.7276]
[1725772107280,2.7271,128.36,128.3,1.3771]
[1725772107281,8.38,128.35,128.3,1.3771]
[1725772107687,11.1073,128.35,128.31,6.57356901]
[1725772107889,8.38,128.35,128.31,3.84566901]
[1725772109287,8.38,128.35,128.32,2.7278]
[1725772114495,11.1073,128.35,128.32,2.7278]
[1725772116305,11.1073,128.35,128.31,2.728]
[1725772117706,2.7273,128.35,128.31,2.728]
[1725772130513,2.7272,128.36,128.32,2.7279]
[1725772130819,11.1072,128.36,128.32,2.7279]
[1725772145426,2.7274,128.35,128.31,2.7281]
[1725772145829,11.1074,128.35,128.31,2.7281]
[1725772149928,1.2934,128.39,128.33,8.38]
[1725772150229,23.39,128.45,128.3,3.89867509]
[1725772150230,8.38,128.42,128.35,8.38]
[1725772150425,33.91359831,128.45,128.35,8.38]
[1725772150426,1.3184,128.44,128.35,8.38]
[1725772150621,1.3184,128.44,128.37,11.1066]
[1725772150622,11.1058,128.42,128.37,11.1066]
[1725772150824,1.3184,128.44,128.38,8.38]
[1725772151033,9.6984,128.44,128.38,8.38]
[1725772151532,2.7256,128.43,128.38,8.38]
[1725772152332,2.7256,128.43,128.39,2.7264]
[1725772153423,8.38,128.41,128.31,12.98277793]
[1725772153626,8.38,128.41,128.35,8.38]
[1725772153931,11.1058,128.42,128.36,8.38]
[1725772154142,8.38,128.42,128.36,8.38]
[1725772154726,8.38,128.42,128.38,2.7266]
[1725772155335,11.1058,128.42,128.38,2.7266]
[1725772155735,8.38,128.41,128.37,2.7268]
[1725772156235,11.1061,128.41,128.35,8.38]
[1725772156629,2.7263,128.4,128.36,2.727]
[1725772157037,8.38,128.39,128.33,8.38]
[1725772158222,8.38,128.39,128.34,2.7275]
[1725772158428,8.38,128.39,128.33,8.38]
[1725772158937,2.7268,128.38,128.33,11.1076]
[1725772159330,2.7268,128.38,128.34,2.7275]
[1725772171644,11.1065,128.39,128.35,2.7272]
[1725772171954,8.38,128.39,128.34,8.38]
[1725772172249,8.38,128.39,128.34,11.1171]
[1725772172649,8.38,128.39,128.36,2.7269]
[1725772172952,8.38,128.39,128.34,11.1171]
[1725772173353,11.1065,128.39,128.35,2.7272]
[1725772182656,11.1065,128.39,128.34,11.1171]
[1725772182657,2.7266,128.38,128.34,5.4646]
[1725772182849,8.38,128.39,128.34,2.7371]
[1725772183956,2.7267,128.38,128.34,2.7371]
[1725772185447,2.7267,128.38,128.34,5.4646]
[1725772187455,2.7269,128.37,128.33,2.7277]
[1725772195564,2.7269,128.37,128.33,11.1077]
[1725772195759,2.7264,128.4,128.35,2.7271]
[1725772196057,2.7264,128.4,128.34,8.38]
[1725772196058,8.38,128.4,128.34,8.38]
[1725772196860,12.33830693,128.4,128.34,8.38]
[1725772197455,2.7267,128.38,128.34,11.1074]
[1725772201261,2.7269,128.37,128.33,6.53039645]
[1725772201567,2.7269,128.37,128.32,8.38]
[1725772202464,2.7269,128.37,128.33,2.7277]
[1725772208069,11.1067,128.38,128.33,2.7277]
[1725772208261,11.1067,128.38,128.34,2.7274]
[1725772208463,12.33830693,128.4,128.34,2.7274]
[1725772208662,12.33830693,128.4,128.35,8.38]
[1725772208966,107.45674071,128.44,128.36,8.38]
[1725772209166,8.38,128.43,128.37,8.38]
[1725772209668,2.7259,128.42,128.37,12.34236627]
[1725772210667,8.38,128.43,128.39,8.38]
[1725772210668,2.7256,128.43,128.39,8.38]
[1725772211972,2.7256,128.43,128.39,11.1063]
[1725772212362,2.7256,128.43,128.37,12.34236627]
[1725772212569,2.7258,128.42,128.38,2.7266]
[1725772215568,8.38,128.41,128.37,2.7268]
[1725772216065,11.1062,128.41,128.37,2.7268]
[1725772216264,11.1062,128.41,128.36,2.727]
[1725772216870,2.7262,128.4,128.36,2.727]
[1725772220081,2.7264,128.39,128.35,2.7273]
[1725772220974,11.1064,128.39,128.34,5.4913]
[1725772221170,11.1064,128.39,128.34,2.7639]
[1725772222267,11.1064,128.39,128.35,2.7273]
[1725772224978,2.7266,128.38,128.34,5.4913]
[1725772225474,2.7266,128.38,128.34,2.7639]
[1725772227578,2.7266,128.38,128.34,5.4914]
[1725772236180,2.7265,128.39,128.35,2.7272]
[1725772244101,2.7263,128.4,128.36,2.7269]
[1725772244303,11.1063,128.4,128.36,2.7269]
[1725772247498,2.7265,128.39,128.35,2.7272]
[1725772247703,8.38,128.39,128.35,2.7272]
[1725772249303,2.7267,128.38,128.35,2.7272]
[1725772251199,2.7265,128.39,128.35,2.7272]
[1725772255915,3.9672841,128.42,128.34,2.7639]
[1725772256114,114.51834071,128.44,128.38,8.38]
[1725772256310,114.51834071,128.44,128.38,12.31626091]
[1725772257515,2.726,128.42,128.38,15.04276091]
[1725772257714,6.66484339,128.42,128.38,15.04276091]
[1725772259720,6.66484339,128.42,128.38,2.7265]
[1725772272323,2.7256,128.43,128.39,11.1064]
[1725772273336,117.24374071,128.44,128.4,2.7262]
[1725772275622,2.7257,128.43,128.39,2.7264]
[1725772277619,117.24384071,128.44,128.4,2.7262]
[1725772278327,2.7256,128.43,128.39,11.1064]
[1725772278529,2.7256,128.43,128.39,8.38]
[1725772279328,117.24384071,128.44,128.4,2.7262]
[1725772280620,108.86384071,128.44,128.4,2.7262]
[1725772292528,106.13834071,128.44,128.42,8.38]
[1725772292732,1.3848,128.48,128.42,8.38]
[1725772292733,8.38,128.47,128.42,8.38]
[1725772294329,2.7251,128.46,128.42,11.1058]
[1725772298634,2.7252,128.45,128.41,2.7259]
[1725772300444,8.38,128.45,128.38,2.7114]
[1725772300637,8.38,128.45,128.38,11.0914]
[1725772301149,2.7257,128.43,128.38,13.8179]
[1725772301445,2.7257,128.43,128.38,5.4379]
[1725772301640,2.7257,128.43,128.38,2.7114]
[1725772301641,6.53139034,128.42,128.38,2.7114]
[1725772303141,2.7259,128.42,128.38,2.7114]
[1725772303336,2.7259,128.42,128.38,5.438]
[1725772303538,6.65508689,128.42,128.38,5.438]
[1725772313151,2.7263,128.4,128.34,1.3602]
[1725772313367,2.7263,128.4,128.35,8.38]
[1725772313657,3.80257716,128.39,128.34,11.1557]
[1725772313857,8.38,128.4,128.34,11.1557]
[1725772314451,8.38,128.4,128.35,2.7271]
[1725772314452,2.7265,128.39,128.35,2.7271]
[1725772315763,11.1062,128.4,128.35,2.7271]
[1725772316159,15.05564445,128.4,128.35,2.7271]
[1725772319459,15.05564445,128.4,128.36,2.7271]
[1725772320765,11.1062,128.4,128.36,2.7271]
[1725772325575,2.7262,128.4,128.36,2.7271]
[1725772338487,8.38,128.38,128.34,2.7757]
[1725772339383,11.1067,128.38,128.34,5.5031]
[1725772345184,1.2954,128.44,128.36,8.38]
[1725772345382,8.38,128.42,128.36,8.38]
[1725772345692,12.34751274,128.42,128.36,8.38]
[1725772345886,2.7263,128.4,128.35,9.7001]
[1725772347291,2.7263,128.4,128.36,2.727]
[1725772347591,2.7263,128.4,128.35,9.7001]
[1725772348294,2.7263,128.4,128.35,12.4272]
[1725772349889,1.2954,128.44,128.39,2.7264]
[1725772349890,2.7255,128.44,128.39,2.7264]
[1725772350090,2.7255,128.44,128.39,8.38]
[1725772350708,2.7255,128.44,128.39,11.1321]
[1725772351392,2.7252,128.45,128.4,11.1061]
[1725772355793,2.7254,128.44,128.4,11.1061]
[1725772362492,2.7252,128.45,128.4,11.1061]
[1725772365696,2.7254,128.44,128.4,11.1061]
[1725772365897,11.1054,128.44,128.4,2.7261]
[1725772370511,2.7252,128.45,128.4,11.1061]
[1725772372116,2.7252,128.45,128.4,2.7261]
[1725772372502,2.7252,128.45,128.4,11.1061]
[1725772374810,2.725,128.46,128.4,8.38]
[1725772375111,8.38,128.48,128.42,8.38]
[1725772375810,8.38,128.48,128.43,8.38]
[1725772376404,2.7249,128.47,128.43,11.1055]
[1725772377209,2.7246,128.48,128.43,11.1055]
[1725772381610,118.41785929,128.49,128.43,11.1055]
[1725772381611,2.7248,128.47,128.43,11.1055]
[1725772381810,2.7248,128.47,128.43,2.7255]
[1725772382409,8.38,128.44,128.39,4.0606]
[1725772382605,8.38,128.44,128.39,2.7521]
[1725772382802,2.7258,128.43,128.39,2.7521]
[1725772383001,8.38,128.42,128.39,2.7521]
[1725772383214,8.38,128.42,128.37,12.20700467]
[1725772383215,12.36045875,128.41,128.37,3.82700467]
[1725772383410,133.42785929,128.49,128.37,3.82700467]
[1725772383411,8.38,128.39,128.37,3.82700467]
[1725772383705,8.38,128.39,128.34,2.7273]
[1725772385307,11.1065,128.39,128.34,2.7273]
[1725772386012,11.1065,128.39,128.34,11.1073]
[1725772391612,8.38,128.38,128.32,2.6901]
[1725772391917,8.38,128.37,128.32,2.6901]
[1725772392415,8.38,128.37,128.23,26.4062882]
[1725772392715,8.38,128.37,128.22,163.28030884]
[1725772392716,8.38,128.36,128.29,8.38]
[1725772392917,11.1072,128.36,128.3,5.4621]
[1725772394917,2.7273,128.35,128.3,5.4621]
[1725772397712,2.7273,128.35,128.31,2.7281]
[1725772398217,1.3319,128.41,128.33,8.38]
[1725772398515,8.38,128.39,128.33,8.38]
[1725772399212,11.1065,128.39,128.33,11.1075]
[1725772400412,11.1065,128.39,128.34,2.7274]
[1725772403910,8.38,128.38,128.31,1.3726]
[1725772404111,8.38,128.37,128.31,1.3726]
[1725772405417,11.1069,128.37,128.32,2.7279]
[1725772408412,2.7271,128.36,128.32,2.7279]
[1725772408817,2.7271,128.36,128.31,2.7281]
[1725772409326,2.7271,128.36,128.3,11.114]
[1725772410227,11.1069,128.37,128.32,2.7279]
[1725772411917,1.3319,128.41,128.34,8.38]
[1725772412116,8.38,128.42,128.3,2.734]
[1725772412324,12.22722802,128.42,128.37,8.38]
[1725772412624,8.38,128.43,128.37,8.38]
[1725772414426,8.38,128.43,128.38,2.7266]
[1725772414727,8.38,128.44,128.38,8.38]
[1725772415429,11.1054,128.44,128.39,2.7263]
[1725772416926,11.1056,128.43,128.38,2.7266]
[1725772420527,8.38,128.43,128.38,11.1066]
[1725772422536,11.1052,128.45,128.39,8.38]
[1725772422725,8.38,128.45,128.39,8.38]
[1725772423045,8.38,128.45,128.41,2.726]
[1725772424734,2.7252,128.45,128.41,2.726]
[1725772425132,2.725,128.46,128.42,2.7258]
[1725772425332,8.38,128.48,128.41,8.38]
[1725772425534,8.38,128.48,128.42,2.5908]
[1725772425735,11.1047,128.48,128.43,11.1054]
[1725772425932,121.62152572,128.49,128.43,8.38]
[1725772426835,124.34592572,128.49,128.44,2.7253]
[1725772427430,11.1045,128.48,128.44,2.7253]
[1725772432555,11.1045,128.48,128.43,11.1055]
[1725772437655,11.1047,128.47,128.43,2.7255]
[1725772437849,11.1047,128.47,128.42,5.3165]
[1725772451360,11.1047,128.47,128.42,13.6965]
[1725772455468,2.7247,128.47,128.42,13.6965]
[1725772460668,2.7247,128.47,128.43,2.7256]
[1725772464476,11.1046,128.48,128.43,2.7256]